fUSD/lending_fUSD_20250614
["ID","MTS","AMOUNT","RATE_DAILY","PERIOD"]
[365779617,1749909038083,-427.47,0.00016985,2]
[365779619,1749909038093,-427.47,0.00016989,2]
[365779621,1749909038103,-222.79533624,0.0001699,2]
[365779623,1749909038114,-125303.80090531,0.0001699,2]
[365779625,1749909038124,-500.0,0.0001699,2]
[365779627,1749909038135,-150.0,0.0001699,2]
[365779629,1749909038146,-150.0,0.0001699,2]
[365779631,1749909038157,-150.0,0.0001699,2]
[365779633,1749909038167,-150.0,0.0001699,2]
[365779635,1749909038177,-150.0,0.0001699,2]
[365779637,1749909038187,-150.0,0.0001699,2]
[365779639,1749909038196,-179.99996996,0.0001699,2]
[365779641,1749909038205,-150.0,0.0001699,2]
[365779643,1749909038220,-150.0,0.0001699,2]
[365779645,1749909038229,-150.0,0.0001699,2]
[365779646,1749909038239,-152.39000423,0.0001699,2]
[365779648,1749909038249,-150.0,0.0001699,2]
[365779650,1749909038260,-500.0,0.00016994,2]
[365779652,1749909038270,-500.0,0.00016994,2]
[365779654,1749909038279,-500.0,0.00016994,2]
[365779656,1749909038288,-500.0,0.00016994,2]
[365779658,1749909038301,-500.0,0.00016994,2]
[365779660,1749909038311,-500.0,0.00016994,2]
[365779662,1749909038321,-391.88915587,0.00016994,2]
[365779664,1749909038331,-500.0,0.00016994,2]
[365779666,1749909038341,-500.0,0.00016994,2]
[365779668,1749909038351,-500.0,0.00016994,2]
[365779670,1749909038362,-265.71432746,0.00016994,2]
[365779672,1749909038371,-429.38631365,0.00016994,2]
[365779674,1749909038381,-500.0,0.00016994,2]
[365779676,1749909038392,-500.0,0.00016994,2]
[365779678,1749909038402,-500.0,0.00016994,2]
[365779680,1749909038412,-500.0,0.00016994,2]
[365779682,1749909038421,-500.0,0.00016994,2]
[365779684,1749909038432,-500.0,0.00016994,2]
[365779686,1749909038441,-500.0,0.00016994,2]
[365779688,1749909038451,-500.0,0.00016994,2]
[365779690,1749909038461,-500.0,0.00016994,2]
[365779691,1749909038470,-500.0,0.00016994,2]
[365779693,1749909038480,-500.0,0.00016994,2]
[365779695,1749909038490,-500.0,0.00016994,2]
[365779697,1749909038500,-500.0,0.00016994,2]
[365779700,1749909038510,-500.0,0.00016994,2]
[365779701,1749909038519,-500.0,0.00016994,2]
[365779703,1749909038529,-174.89107166,0.00016994,2]
[365779705,1749909038538,-500.0,0.00016994,2]
[365779707,1749909038548,-500.0,0.00016994,2]
[365779709,1749909038557,-500.0,0.00016994,2]
[365779711,1749909038566,-500.0,0.00016994,2]
[365779713,1749909038577,-500.0,0.00016994,2]
[365779715,1749909038586,-500.0,0.00016994,2]
[365779717,1749909038595,-500.0,0.00016994,2]
[365779719,1749909038605,-500.0,0.00016994,2]
[365779721,1749909038616,-500.0,0.00016994,2]
[365779723,1749909038626,-500.0,0.00016994,2]
[365779725,1749909038635,-500.0,0.00016994,2]
[365779727,1749909038644,-500.0,0.00016994,2]
[365779729,1749909038654,-500.0,0.00016994,2]
[365779731,1749909038663,-500.0,0.00016994,2]
[365779733,1749909038672,-500.0,0.00016994,2]
[365779735,1749909038681,-500.0,0.00016994,2]
[365779736,1749909038692,-500.0,0.00016994,2]
[365779738,1749909038702,-500.0,0.00016994,2]
[365779740,1749909038712,-500.0,0.00016994,2]
[365779742,1749909038721,-500.0,0.00016994,2]
[365779744,1749909038730,-500.0,0.00016994,2]
[365779746,1749909038740,-500.0,0.00016994,2]
[365779748,1749909038750,-500.0,0.00016994,2]
[365779750,1749909038760,-500.0,0.00016994,2]
[365779752,1749909038770,-500.0,0.00016994,2]
[365779754,1749909038780,-500.0,0.00016994,2]
[365779756,1749909038790,-500.0,0.00016994,2]
[365779758,1749909038800,-500.0,0.00016994,2]
[365779760,1749909038810,-500.0,0.00016994,2]
[365779762,1749909038819,-188.94633107,0.00016994,2]
[365779764,1749909038829,-500.0,0.00016994,2]
[365779766,1749909038838,-500.0,0.00016994,2]
[365779768,1749909038848,-500.0,0.00016994,2]
[365779770,1749909038857,-500.0,0.00016994,2]
[365779772,1749909038869,-500.0,0.00016994,2]
[365779774,1749909038879,-500.0,0.00016994,2]
[365779776,1749909038888,-500.0,0.00016994,2]
[365779778,1749909038898,-500.0,0.00016994,2]
[365779780,1749909038908,-500.0,0.00016994,2]
[365779782,1749909038917,-500.0,0.00016994,2]
[365779784,1749909038927,-500.0,0.00016994,2]
[365779786,1749909038937,-500.0,0.00016994,2]
[365779788,1749909038946,-250.0,0.00016994,2]
[365779790,1749909038955,-802.0,0.00016995,2]
[365779792,1749909038965,-155.0,0.00016995,2]
[365779794,1749909038974,-1838.301264,0.00016995,2]
[365779797,1749909038985,-5660.3339626,0.00016995,2]
[365779798,1749909038994,-150.0,0.00016995,2]
[365779800,1749909039004,-29620.3926991,0.00016995,2]
[365779802,1749909039013,-150.0,0.00016995,2]
[365779804,1749909039022,-150.0,0.00016995,2]
[365779806,1749909039032,-150.0,0.00016995,2]
[365779808,1749909039041,-500.0,0.00016995,2]
[365779810,1749909039050,-150.0,0.00016995,2]
[365779812,1749909039059,-150.0,0.00016995,2]
[365779814,1749909039068,-150.0,0.00016995,2]
[365779816,1749909039078,-552.7570121,0.00016995,2]
[365779818,1749909039087,-2312.5267171,0.00016995,2]
[365779820,1749909039098,-86002.7894999,0.00016995,2]
[365779822,1749909039108,-300.0,0.00016999,2]
[365779825,1749909039119,-666.0,0.00016999,2]
[365779827,1749909039129,-1000.0,0.00016999,2]
[365779828,1749909039138,-1000.0,0.00016999,2]
[365779830,1749909039147,-1000.0,0.00016999,2]
[365779832,1749909039157,-3977.18573769,0.00016999,2]
[365779834,1749909039166,-150.0,0.00016999,2]
[365779837,1749909039179,-1000.0,0.00016999,2]
[365779838,1749909039188,-300.0,0.00016999,2]
[365779840,1749909039197,-366.39536603,0.00016999,2]
[365779842,1749909039206,-504.0,0.00016999,2]
[365779844,1749909039215,-10653.74566551,0.00017,2]
[365779846,1749909039227,-620548.35256704,0.00017,2]
[365780048,1749909040531,-2145.7623292,0.00017,2]
[365780051,1749909040544,-287.06521009,0.00017,2]
[365780054,1749909040556,-450.65576251,0.00017,2]
[365780057,1749909040567,-1072.08,0.00017,2]
[365780061,1749909040582,-46201.64433722,0.00017,2]
[365780065,1749909040599,-2124.64431113,0.00017,2]
[365780069,1749909040612,-5007.86443589,0.00017,2]
[365780080,1749909040690,-2304.54060825,0.00017,2]
[365780082,1749909040703,-11800.2101255,0.00017,2]
[365780140,1749909041137,-758049.74306137,0.00017,2]
[365780142,1749909041146,-1198.0,0.00017,2]
[365780144,1749909041155,-1198.0,0.00017,2]
[365780146,1749909041164,-481.24221868,0.00017,2]
[365780308,1749909042726,-352.407,0.00017,2]
[365780332,1749909042948,-256.57632,0.000164,2]
[365780612,1749909045721,-84.78368,0.000164,2]
[365780614,1749909045730,-1356.34,0.000164,2]
[365780616,1749909045740,-461.5,0.000164,2]
[365780618,1749909045750,-199.0,0.00016995,2]
[365780620,1749909045759,-364.35078132,0.00017,2]
[365780622,1749909045769,-1198.0,0.00017,2]
[365780624,1749909045778,-1198.0,0.00017,2]
[365780625,1749909045787,-37794.96375545,0.00017,2]
[365781876,1749909113960,500.0,0.00025,120]
[365781877,1749909128821,500.0,0.00025,120]
[365781878,1749909161510,201.0,0.00015055,2]
[365781880,1749909213922,800.0,0.00015068,2]
[365781881,1749909231651,30.27219875,0.00015181,2]
[365781882,1749909231672,347.96676485,0.00015181,2]
[365781884,1749909300415,2751.0,0.0001595,2]
[365781885,1749909308405,554.255364,7.945e-05,2]
[365781886,1749909400313,6346.77787115,0.00015905,2]
[365781887,1749909400340,192.15212885,0.00015905,2]
[365781888,1749909442297,2104.15,0.00015922,2]
[365781889,1749909464949,7703.69787115,0.00015909,2]
[365781890,1749909464972,818.34212885,0.00015909,2]
[365781891,1749909477569,1408.12674748,0.00025,120]
[365781893,1749909506364,-185.76,0.00016041,2]
[365781894,1749909611781,201.0,0.0001536,2]
[365781895,1749909612047,201.0,0.00015947,2]
[365781896,1749909627499,250.0,0.00015885,2]
[365781897,1749909645254,900.0,0.00010959,2]
[365781898,1749909645508,900.0,0.00010959,2]
[365781899,1749909645795,900.0,0.00010959,2]
[365781900,1749909646044,900.0,0.00010959,2]
[365781901,1749909646303,900.0,0.00010959,2]
[365781902,1749909646462,177.79,0.0001588,2]
[365781903,1749909646949,900.0,0.00010959,2]
[365781904,1749909646986,177.79,0.00015884,2]
[365781905,1749909647042,84.33368052,0.00010959,2]
[365781906,1749909647064,815.66631948,0.00010959,2]
[365781907,1749909647091,177.79,0.00015888,2]
[365781908,1749909647148,177.79,0.00015893,2]
[365781909,1749909647175,900.0,0.00010959,2]
[365781910,1749909647280,177.79,0.00015897,2]
[365781911,1749909647373,702.83155167,0.00010959,2]
[365781912,1749909647394,197.16844833,0.00010959,2]
[365781913,1749909649395,177.79,0.00015901,2]
[365781914,1749909649447,900.0,0.00010959,2]
[365781915,1749909649549,177.79,0.00015905,2]
[365781916,1749909649656,177.79,0.00015909,2]
[365781917,1749909649807,177.79,0.00015914,2]
[365781918,1749909649889,177.79,0.00015918,2]
[365781919,1749909649957,177.79,0.00015922,2]
[365781920,1749909650022,177.79,0.00015926,2]
[365781921,1749909650063,177.79,0.0001593,2]
[365781922,1749909650840,177.79,0.00015935,2]
[365781923,1749909650889,177.79,0.00015939,2]
[365781924,1749909650932,177.79,0.00015943,2]
[365781925,1749909650986,177.79,0.00015947,2]
[365781926,1749909651032,177.79,0.00015951,2]
[365781927,1749909651067,177.79,0.00015956,2]
[365781928,1749909651113,177.79,0.0001596,2]
[365781929,1749909664709,1000.0,0.0001588,2]
[365781930,1749909665533,298.3,0.00025,120]
[365781931,1749909747528,200.0,0.00015881,2]
[365781934,1749909793733,154.0,0.00013699,2]
[365781936,1749909800685,500.0,0.00024999,120]
[365781937,1749909807641,179.63,0.00015961,2]
[365781938,1749909862885,231.58,0.00015868,2]
[365781939,1749909890203,666.0,0.00015858,2]
[365781940,1749909924742,500.0,0.00015852,2]
[365781941,1749909935630,2325.74603987,0.00025,120]
[365781942,1749909972219,201.0,0.00015535,2]
[365781944,1749910001623,264.0,0.00015535,2]
[365781950,1749910027955,659.09,0.00013931,2]
[365781951,1749910030046,2358.47155167,0.000156,2]
[365781952,1749910030070,715.00331882,0.000156,2]
[365781962,1749910093762,1181.36,0.00015839,2]
[365781963,1749910094440,150.0,0.00015839,2]
[365781964,1749910120914,7953.63668118,0.00015824,2]
[365781965,1749910120936,10000.0,0.00015824,2]
[365781966,1749910120957,5946.36331882,0.00015824,2]
[365781972,1749910232005,-259.83343666,0.00016041,2]
[365781973,1749910232015,-151.0,0.00016041,2]
[365781974,1749910232024,-179.79176355,0.00016042,2]
[365781975,1749910232036,-11.85823645,0.00016042,2]
[365781976,1749910232046,-201.0,0.00016135,2]
[365781977,1749910232056,-459.23176155,0.00016164,2]
[365781978,1749910232072,-140.76823845,0.00016164,2]
[365781979,1749910232081,-112.73176155,0.00016164,2]
[365781980,1749910232092,-909.92756817,0.00016164,2]
[365781981,1749910232102,-659.09,0.00016195,2]
[365781982,1749910232111,-151.0,0.00016294,2]
[365781983,1749910232121,-151.0,0.00016295,2]
[365781984,1749910232130,-151.0,0.00016298,2]
[365781985,1749910232140,-166.62,0.00016308,2]
[365781986,1749910232150,-207.4,0.00016418,2]
[365781987,1749910232160,-800.0,0.00016438,2]
[365781988,1749910232170,-1200.0,0.00016699,2]
[365781989,1749910232179,-461.5,0.000167,2]
[365781990,1749910232189,-461.5,0.000167,2]
[365781991,1749910232199,-461.5,0.000167,2]
[365781992,1749910232209,-461.5,0.000167,2]
[365781993,1749910232219,-3877.5,0.000167,2]
[365781994,1749910232229,-1593.96,0.000167,2]
[365781995,1749910232239,-3392.15,0.000167,2]
[365781996,1749910232249,-187.0,0.00016712,2]
[365781997,1749910232259,-251.0,0.00016715,2]
[365781998,1749910232268,-1249.0,0.00016715,2]
[365781999,1749910232277,-201.0,0.00016736,3]
[365782000,1749910232287,-1000.0,0.00016737,2]
[365782002,1749910232296,-1005.0,0.00016755,2]
[365782004,1749910232305,-1000.0,0.00016763,2]
[365782006,1749910232315,-1000.0,0.00016767,2]
[365782008,1749910232324,-1000.0,0.00016783,2]
[365782010,1749910232333,-867.9924602,0.00016783,2]
[365782011,1749910232342,-859.93625917,0.00016797,2]
[365782012,1749910232354,-140.06374083,0.00016797,2]
[365782013,1749910232363,-191.08477285,0.000168,2]
[365782032,1749910237889,-3365.75741863,0.000168,2]
[365782033,1749910237905,-320.65780852,0.000168,2]
[365782034,1749910237916,-1000.0,0.000168,2]
[365782035,1749910237926,-2806.47219148,0.000168,2]
[365782036,1749910237938,-585.67780852,0.000168,2]
[365782037,1749910237948,-227.35425708,0.000168,2]
[365782038,1749910237958,-1000.0,0.00016805,2]
[365782039,1749910237968,-335.1979344,0.00016805,2]
[365782040,1749910237980,-214.8020656,0.00016805,2]
[365782041,1749910237990,-759.42626417,0.00016806,2]
[365782042,1749910238000,-1000.0,0.00016811,2]
[365782043,1749910238010,-1000.0,0.00016818,2]
[365782044,1749910238020,-1000.0,0.00016822,2]
[365782045,1749910238031,-1306.0,0.00016839,2]
[365782046,1749910238042,-206.16691252,0.00016853,2]
[365782047,1749910238052,-1000.0,0.00016859,2]
[365782048,1749910238062,-1000.0,0.00016859,2]
[365782049,1749910238072,-315.17654501,0.00016872,2]
[365782051,1749910238082,-151.0,0.0001688,2]
[365782053,1749910238091,-151.0,0.0001688,2]
[365782054,1749910238101,-151.0,0.0001688,2]
[365782056,1749910238111,-500.0,0.0001688,2]
[365782058,1749910238121,-49.60041626,0.0001688,2]
[365782117,1749910238814,-619.05144131,0.0001688,2]
[365782119,1749910238823,-151.0,0.0001688,2]
[365782121,1749910238833,-230.44286343,0.0001688,2]
[365782122,1749910238843,-65.70569526,0.0001688,2]
[365782124,1749910238855,-87.33289856,0.0001688,2]
[365782126,1749910238864,-500.0,0.0001688,2]
[365782128,1749910238874,-500.0,0.0001688,2]
[365782129,1749910238883,-34.16710144,0.0001688,2]
[365782131,1749910238895,-465.83289856,0.0001688,2]
[365782133,1749910238904,-500.0,0.0001688,2]
[365782135,1749910238914,-132.60710144,0.0001688,2]
[365782137,1749910238927,-367.39289856,0.0001688,2]
[365782139,1749910238936,-500.0,0.0001688,2]
[365782140,1749910238945,-150.0,0.00016889,2]
[365782142,1749910238954,-1.3350394,0.00016891,2]
[365782239,1749910240058,-198.93497494,0.0001688,2]
[365782241,1749910240068,-998.6649606,0.00016891,2]
[365782243,1749910240078,-1229.53500053,0.00016894,2]
[365782245,1749910240088,-802.0,0.00016895,2]
[365782247,1749910240097,-1229.53500053,0.00016895,2]
[365782249,1749910240107,-307.32865356,0.00016895,2]
[365782251,1749910240116,-1502.81154095,0.00016895,2]
[365782253,1749910240125,-1229.53500053,0.00016895,2]
[365782255,1749910240134,-1502.81154093,0.00016896,2]
[365782257,1749910240144,-155.0,0.00016896,2]
[365782259,1749910240153,-1229.53500053,0.00016896,2]
[365782261,1749910240164,-1502.81154093,0.00016896,2]
[365782263,1749910240173,-1502.81154093,0.00016897,2]
[365782265,1749910240183,-1229.53500053,0.00016897,2]
[365782267,1749910240192,-1502.81154093,0.00016897,2]
[365782269,1749910240202,-1229.53500053,0.00016897,2]
[365782271,1749910240212,-1502.81154093,0.00016898,2]
[365782273,1749910240221,-1000.0,0.00016898,2]
[365782275,1749910240231,-1229.53500053,0.00016898,2]
[365782277,1749910240241,-1502.81154093,0.00016898,2]
[365782280,1749910240251,-1229.53500053,0.00016899,2]
[365782282,1749910240261,-1502.81154093,0.00016899,2]
[365782284,1749910240271,-1229.53500053,0.00016899,2]
[365782286,1749910240280,-1502.81154093,0.00016899,2]
[365782288,1749910240289,-483.6193,0.000169,2]
[365782290,1749910240298,-500.0,0.000169,2]
[365782291,1749910240308,-9562.6176,0.000169,2]
[365782293,1749910240317,-8678.52302055,0.000169,2]
[365782357,1749910240923,-12709.17267945,0.000169,2]
[365782359,1749910240932,-587.9859,0.000169,2]
[365782361,1749910240942,-365.6867559,0.000169,2]
[365782363,1749910240952,-3877.5,0.000169,2]
[365782365,1749910240961,-1104.0,0.000169,2]
[365782367,1749910240971,-1502.81154093,0.000169,2]
[365782369,1749910240982,-201.33957346,0.000169,2]
[365782371,1749910240991,-164.41315124,0.000169,2]
[365782373,1749910241001,-3392.15,0.000169,2]
[365782375,1749910241010,-964.6273015,0.000169,2]
[365782377,1749910241020,-4912.53931168,0.000169,2]
[365782379,1749910241029,-1229.53500053,0.000169,2]
[365782381,1749910241039,-1000.0,0.00016911,2]
[365782383,1749910241048,-808.0,0.00016922,2]
[365782385,1749910241057,-151.0,0.00016935,2]
[365782387,1749910241066,-594.08918556,0.00016973,2]
[365782388,1749910241076,-500.0,0.00016973,2]
[365782391,1749910241085,-502.52909233,0.00016973,2]
[365782393,1749910241095,-500.0,0.00016973,2]
[365782395,1749910241105,-500.0,0.00016973,2]
[365782396,1749910241114,-500.0,0.00016973,2]
[365782399,1749910241124,-500.0,0.00016973,2]
[365782400,1749910241133,-500.0,0.00016973,2]
[365782403,1749910241142,-563.19258255,0.00016973,2]
[365782405,1749910241152,-1000.0,0.00016975,2]
[365782407,1749910241162,-1000.0,0.00016983,2]
[365782409,1749910241172,-431.89,0.00016984,3]
[365782411,1749910241181,-1198.06,0.00016985,2]
[365782413,1749910241191,-265.67383444,0.0001699,2]
[365782414,1749910241200,-1198.06,0.0001699,2]
[365782416,1749910241210,-56146.7969999,0.00016993,2]
[365782418,1749910241220,-32958.0371035,0.00016993,2]
[365782420,1749910241230,-6083.0360355,0.00016994,2]
[365782422,1749910241240,-2842.8640708,0.00016994,2]
[365782424,1749910241250,-2733.5512583,0.00016994,2]
[365782426,1749910241259,-418.41270305,0.00016994,2]
[365782428,1749910241269,-500.0,0.00016994,2]
[365782430,1749910241279,-500.0,0.00016994,2]
[365782432,1749910241288,-500.0,0.00016994,2]
[365782434,1749910241298,-314.60988736,0.00016994,2]
[365782436,1749910241308,-500.0,0.00016994,2]
[365782438,1749910241317,-379.8414376,0.00016994,2]
[365782441,1749910241327,-526.68513447,0.00016994,2]
[365782443,1749910241337,-500.0,0.00016994,2]
[365782444,1749910241346,-500.0,0.00016994,2]
[365782447,1749910241356,-500.0,0.00016994,2]
[365782448,1749910241365,-500.0,0.00016994,2]
[365782450,1749910241375,-150.0,0.00016995,2]
[365782453,1749910241385,-150.0,0.00016995,2]
[365782455,1749910241395,-150.0,0.00016995,2]
[365782457,1749910241405,-150.0,0.00016995,2]
[365782458,1749910241414,-150.0,0.00016995,2]
[365782460,1749910241423,-150.0,0.00016995,2]
[365782462,1749910241433,-150.0,0.00016995,2]
[365782465,1749910241444,-235598.03780022,0.00016995,2]
[365782467,1749910241453,-150.0,0.00016995,2]
[365782469,1749910241463,-150.0,0.00016995,2]
[365782471,1749910241474,-158.77517985,0.00016995,2]
[365782473,1749910241483,-150.0,0.00016995,2]
[365782475,1749910241492,-500.0,0.00016995,2]
[365782477,1749910241502,-150.0,0.00016995,2]
[365782479,1749910241511,-150.0,0.00016995,2]
[365782481,1749910241520,-150.0,0.00016995,2]
[365782483,1749910241530,-150.0,0.00016995,2]
[365782485,1749910241539,-150.0,0.00016995,2]
[365782487,1749910241550,-150.0,0.00016995,2]
[365782489,1749910241560,-150.0,0.00016995,2]
[365782491,1749910241571,-150.0,0.00016995,2]
[365782493,1749910241581,-150.0,0.00016995,2]
[365782495,1749910241591,-500.0,0.00016995,2]
[365782497,1749910241600,-150.0,0.00016995,2]
[365782499,1749910241610,-150.0,0.00016995,2]
[365782501,1749910241619,-150.0,0.00016995,2]
[365782503,1749910241629,-150.0,0.00016995,2]
[365782505,1749910241638,-500.0,0.00016995,2]
[365782507,1749910241648,-155.3326371,0.00016995,2]
[365782509,1749910241658,-226.37451205,0.00016995,2]
[365782511,1749910241667,-281.56550501,0.00016995,2]
[365782513,1749910241676,-150.0,0.00016995,2]
[365782515,1749910241686,-150.0,0.00016995,2]
[365782517,1749910241696,-150.0,0.00016995,2]
[365782519,1749910241705,-306.41126273,0.00016999,2]
[365782521,1749910241714,-300.0,0.00016999,2]
[365782523,1749910241724,-1000.0,0.00016999,2]
[365782525,1749910241733,-1000.0,0.00016999,2]
[365782527,1749910241743,-1000.0,0.00016999,2]
[365782529,1749910241754,-1000.0,0.00016999,2]
[365782531,1749910241765,-1000.0,0.00016999,2]
[365782533,1749910241774,-176.34,0.00016999,2]
[365782535,1749910241784,-300.0,0.00016999,2]
[365782537,1749910241793,-364874.28024927,0.00017,2]
[365782539,1749910241810,-42668.00000001,0.00017,2]
[365782541,1749910241822,-431.89,0.00017,2]
[365782545,1749910241941,221.0,0.00015535,2]
[365782649,1749910242910,-174.06810308,0.000169,2]
[365782651,1749910242920,-21801.79537793,0.00017,2]
[365782657,1749910242968,-400.0,0.00017,2]
[365782664,1749910243030,-550.53888,0.00017,2]
[365782666,1749910243042,-911.06983047,0.00017,2]
[365782668,1749910243054,-2817.23866527,0.00017,2]
[365782701,1749910243363,-1308.51154702,0.00017,2]
[365782952,1749910245905,-106610.0,0.00017,2]
[365782960,1749910245966,-5936.79199541,0.00017,2]
[365782973,1749910246085,-1709.2545049,0.00017,2]
[365783870,1749910287965,900.0,0.00010959,2]
[365783871,1749910288590,900.0,0.00010959,2]
[365783872,1749910288872,900.0,0.00010959,2]
[365783873,1749910289849,900.0,0.00010959,2]
[365783874,1749910290146,232.63668118,0.00010959,2]
[365783875,1749910290168,667.36331882,0.00010959,2]
[365783876,1749910290751,900.0,0.00010959,2]
[365783877,1749910291033,900.0,0.00010959,2]
[365783878,1749910291309,900.0,0.00010959,2]
[365783879,1749910291589,900.0,0.00010959,2]
[365783880,1749910291882,153.35409536,0.00010959,2]
[365783881,1749910291904,746.64590464,0.00010959,2]
[365783882,1749910323644,184.74,0.00012849,2]
[365783883,1749910341670,168.0,0.0001551,2]
[365783884,1749910343836,168.0,0.00015526,2]
[365783885,1749910403214,800.0,0.00015068,2]
[365783886,1749910463561,200.0,0.00025,120]
[365783887,1749910493396,1052.07,0.00015957,2]
[365783888,1749910503432,2613.18077654,0.00015968,2]
[365783889,1749910503454,5023.58922346,0.00015968,2]
[365783890,1749910531395,4976.41077654,0.00015934,2]
[365783891,1749910531417,10000.0,0.00015934,2]
[365783892,1749910531439,10000.0,0.00015934,2]
[365783893,1749910531460,5658.91922346,0.00015934,2]
[365783896,1749910593633,178.97,0.00015902,2]
[365783897,1749910623161,150.0,0.00015897,2]
[365783898,1749910631888,250.0,0.00015887,2]
[365783899,1749910637314,2751.0,0.00015885,2]
[365783900,1749910646831,248.88,0.00015904,2]
[365783901,1749910652644,762.23077654,0.00013972,2]
[365783902,1749910652668,237.76922346,0.00013972,2]
[365783903,1749910654205,1000.0,0.00015342,2]
[365783904,1749910657327,8762.23077654,0.00015899,2]
[365783905,1749910657348,7742.28922346,0.00015899,2]
[365783906,1749910658787,155.15,0.00015885,2]
[365783907,1749910659022,155.15,0.00015905,2]
[365783908,1749910659215,155.15,0.00015925,2]
[365783909,1749910659446,155.15,0.00015945,2]
[365783910,1749910659663,155.15,0.00015965,2]
[365783911,1749910665254,1481.96077654,0.00015899,2]
[365783912,1749910665276,1238.38922346,0.00015899,2]
[365783913,1749910678517,1000.0,0.00015871,2]
[365783914,1749910702996,384.26,0.00015867,2]
[365783915,1749910705425,200.0,0.00015337,2]
[365783916,1749910705699,200.0,0.00015798,2]
[365783917,1749910735184,264.0,0.00015337,2]
[365783918,1749910760984,740.75,0.00015901,2]
[365783919,1749910771543,200.0,0.00015814,2]
[365783920,1749910810041,173.36,0.000158,2]
[365783921,1749910857396,201.70080329,0.00015721,2]
[365783922,1749910901522,202.00003,0.00015337,2]
[365783924,1749910926112,666.0,0.00015768,2]
[365783925,1749910928450,900.0,0.00010959,2]
[365783926,1749910928509,900.0,0.00010959,2]
[365783927,1749910928567,900.0,0.00010959,2]
[365783928,1749910928598,900.0,0.00010959,2]
[365783929,1749910928949,900.0,0.00010959,2]
[365783930,1749910929232,29.53994325,0.00010959,2]
[365783931,1749910929257,870.46005675,0.00010959,2]
[365783932,1749910929840,900.0,0.00010959,2]
[365783933,1749910930132,900.0,0.00010959,2]
[365783934,1749910930391,900.0,0.00010959,2]
[365783935,1749910931022,900.0,0.00010959,2]
[365783936,1749910983232,1500.0,0.00015772,2]
[365783937,1749910986713,150.0,0.00015772,7]
[365783938,1749911047313,900.0,0.00015068,2]
[365783939,1749911052449,200.0,0.00015258,2]
[365783940,1749911052483,200.0,0.0001571,2]
[365783941,1749911059400,169.68,0.00015791,2]
[365783943,1749911090425,253.0,0.00015258,2]
[365783944,1749911092375,150.16,0.00013699,2]
[365783945,1749911109546,2006.69994325,0.00015767,2]
[365783946,1749911109569,7399.85005675,0.00015767,2]
[365783947,1749911126447,1139.86,0.0001577,2]
[365783948,1749911134476,1460.28994325,0.00015768,2]
[365783949,1749911134501,10000.0,0.00015768,2]
[365783950,1749911134525,10000.0,0.00015768,2]
[365783951,1749911134548,2439.71005675,0.00015768,2]
[365783952,1749911153547,300.0,0.00015965,2]
[365783956,1749911240121,985.86,0.00013837,2]
[365783957,1749911245150,13154.59,0.00015746,2]
[365783958,1749911270136,341.54939691,0.00015935,2]
[365783959,1749911271030,150.0,0.00015935,30]